bitfinex-derivatives/quotes_SOLF0:USTF0_20241227
["timestamp","ask_amount","ask_price","bid_price","bid_amount"]
[1735288954493,12.00949195,189.76,189.65,7.08968934]
[1735288954999,2.6386,189.71,189.65,7.08968934]
[1735288955195,2.6386,189.71,189.64,6.3595]
[1735288956093,2.6386,189.71,189.64,2.6395]
[1735288956297,2.6386,189.71,189.65,2.6394]
[1735288956599,2.6387,189.7,189.62,12.00949195]
[1735288956798,1.6701,189.72,189.62,2.6397]
[1735288957390,2.6394,189.66,189.6,61.50966715]
[1735288957600,12.00949195,189.7,189.6,61.50966715]
[1735288957795,1.6313,189.69,189.6,61.50966715]
[1735288958404,2.6391,189.67,189.61,2.6399]
[1735288958699,1.6313,189.69,189.6,61.50966715]
[1735288959799,2.639,189.68,189.61,2.6399]
[1735288959996,1.6313,189.69,189.6,61.50966715]
[1735288960705,2.6393,189.66,189.6,64.14966715]
[1735288961899,2.6396,189.64,189.6,61.50966715]
[1735288962102,2.6396,189.64,189.58,2.6403]
[1735288962301,12.00949195,189.67,189.56,12.00949195]
[1735288963405,6.9295,189.69,189.57,3.72]
[1735288963899,2.6391,189.68,189.62,2.6398]
[1735288964106,6.9295,189.69,189.62,2.6398]
[1735288964801,3.2095,189.69,189.62,2.6398]
[1735288965198,2.6391,189.67,189.57,3.72]
[1735288965807,2.6391,189.67,189.61,2.6399]
[1735288966004,2.6393,189.66,189.61,2.6399]
[1735288966308,12.00949195,189.67,189.59,2.6401]
[1735288966607,2.6394,189.65,189.57,3.72]
[1735288966903,3.2095,189.69,189.57,3.72]
[1735288967109,1.6313,189.69,189.59,12.00949195]
[1735288968108,4.2702,189.69,189.59,12.00949195]
[1735288968803,1.6313,189.69,189.59,12.00949195]
[1735288969004,1.6313,189.69,189.62,2.6398]
[1735288969201,1.6313,189.69,189.59,12.00949195]
[1735288969402,2.6387,189.7,189.59,12.00949195]
[1735288969810,12.00949195,189.76,189.62,12.00949195]
[1735288970006,12.00949195,189.76,189.63,3.64]
[1735288970409,2.6386,189.72,189.65,2.6393]
[1735288971010,2.6386,189.72,189.66,2.6392]
[1735288971703,2.6386,189.72,189.67,2.6391]
[1735288972010,2.6386,189.72,189.63,3.64]
[1735288972507,2.6387,189.71,189.63,3.64]
[1735288972708,12.00949195,189.73,189.63,3.64]
[1735288974509,2.6389,189.69,189.64,2.6395]
[1735288975013,2.6387,189.7,189.64,2.6395]
[1735288979221,14.64789195,189.73,189.67,2.6391]
[1735288979517,12.00949195,189.76,189.67,2.6391]
[1735288979712,12.00949195,189.76,189.7,2.6386]
[1735288979713,2.6381,189.75,189.7,2.6386]
[1735288979920,1.6124,189.78,189.69,3.64]
[1735288980119,9.30178735,189.78,189.71,7.68938735]
[1735288980313,1.6124,189.78,189.71,7.68938735]
[1735288980513,21.90786352,189.88,189.77,7.68938735]
[1735288980720,21.90786352,189.88,189.7,3.64]
[1735288980721,7.68938735,189.8,189.71,3.3119]
[1735288980922,7.68938735,189.78,189.71,7.68938735]
[1735288981220,3.64,189.85,189.71,7.68938735]
[1735288981419,7.68938735,189.78,189.71,7.68938735]
[1735288981618,7.68938735,189.76,189.7,3.64]
[1735288981920,10.32728735,189.76,189.71,2.6386]
[1735288982118,2.6379,189.76,189.71,2.6386]
[1735288982414,12.01708219,189.79,189.7,3.64]
[1735288982610,2.6383,189.73,189.7,3.64]
[1735288983213,3.0973,189.78,189.7,3.64]
[1735288983419,2.6383,189.73,189.7,3.64]
[1735288983622,2.6383,189.73,189.66,3.64]
[1735288983819,12.01708219,189.76,189.66,2.6393]
[1735288984020,2.6386,189.71,189.66,2.6393]
[1735288984523,2.6389,189.69,189.64,6.2794]
[1735288984916,12.01708219,189.73,189.6,12.01708219]
[1735288985118,2.6392,189.67,189.61,6.2799]
[1735288985523,12.01708219,189.7,189.61,2.6399]
[1735288985823,2.6393,189.67,189.61,2.6399]
[1735288988213,2.6393,189.67,189.59,5.304]
[1735288988414,12.01708219,189.73,189.6,12.01708219]
[1735288988926,2.639,189.68,189.63,2.6397]
[1735288989524,2.639,189.68,189.62,2.6398]
[1735288990528,2.6389,189.69,189.63,2.6396]
[1735288990727,2.6389,189.69,189.6,12.01708219]
[1735288990924,12.01708219,189.76,189.63,12.01708219]
[1735288991125,12.01708219,189.76,189.66,2.6393]
[1735288992326,2.6388,189.7,189.65,2.6394]
[1735288992927,2.6388,189.7,189.66,2.6393]
[1735288993130,2.639,189.68,189.6,12.01708219]
[1735288993322,12.01708219,189.73,189.6,12.01708219]
[1735288993529,8.35,189.78,189.67,2.6391]
[1735288993724,12.01708219,189.77,189.65,3.64]
[1735288995023,2.6383,189.73,189.69,2.6388]
[1735288995327,12.01708219,189.77,189.65,3.64]
[1735288995730,2.6382,189.74,189.69,2.6387]
[1735288996031,4.71,189.78,189.66,12.01708219]
[1735288996724,3.0973,189.78,189.67,1.6641]
[1735288997525,5.735,189.78,189.72,2.6383]
[1735288997826,3.0973,189.78,189.67,1.6641]
[1735288998227,12.01708219,189.81,189.69,12.01708219]
[1735288998725,2.6375,189.8,189.75,2.638]
[1735288999032,1.6024,189.83,189.75,2.638]
[1735288999231,2.6374,189.8,189.74,3.64]
[1735288999432,1.6024,189.83,189.74,3.64]
[1735288999631,12.01708219,189.81,189.74,3.64]
[1735288999832,2.6375,189.79,189.74,3.64]
[1735289000127,12.01708219,189.81,189.72,2.6383]
[1735289000730,12.01708219,189.81,189.71,6.2786]
[1735289000927,12.01708219,189.81,189.71,2.6386]
[1735289001126,12.01708219,189.81,189.7,3.64]
[1735289001323,12.01708219,189.81,189.7,6.2787]
[1735289001525,15.65708219,189.81,189.7,2.6387]
[1735289002125,2.6381,189.75,189.7,2.6387]
[1735289002330,15.65708219,189.81,189.68,3.64]
[1735289002331,12.01708219,189.78,189.68,3.64]
[1735289002532,12.01708219,189.78,189.69,2.6388]
[1735289003126,12.01708219,189.78,189.68,3.64]
[1735289003327,12.01708219,189.78,189.71,2.6386]
[1735289004527,2.638,189.76,189.71,2.6386]
[1735289004733,12.01708219,189.78,189.7,2.6387]
[1735289006139,2.6381,189.75,189.7,2.6387]
[1735289007735,3.64,189.81,189.68,3.64]
[1735289007736,12.01708219,189.81,189.68,15.65708219]
[1735289009832,2.6381,189.75,189.7,2.6386]
[1735289010537,2.6379,189.77,189.68,15.65708219]
[1735289010739,12.01708219,189.81,189.68,15.65708219]
[1735289010933,1.6024,189.83,189.71,12.01708219]
[1735289012538,2.6375,189.79,189.74,2.6381]
[1735289013132,12.01708219,189.81,189.72,2.6384]
[1735289014238,7.68904615,189.79,189.72,10.32744615]
[1735289014830,2.6377,189.78,189.72,10.32744615]
[1735289017541,10.32664615,189.79,189.72,7.68904615]
[1735289017742,2.6376,189.79,189.72,7.68904615]
[1735289017938,10.32624615,189.81,189.74,7.68904615]
[1735289018337,7.68904615,189.81,189.75,3.64]
[1735289018541,11.92854615,189.83,189.76,7.68904615]
[1735289018846,10.32614615,189.83,189.76,7.68904615]
[1735289020441,10.32614615,189.83,189.78,2.6376]
[1735289020638,2.6372,189.81,189.76,7.68904615]
[1735289020842,7.68904615,189.81,189.75,3.64]
[1735289021041,7.68904615,189.79,189.75,3.64]
[1735289021244,2.6376,189.79,189.75,3.64]
[1735289022150,2.6373,189.8,189.75,6.2779]
[1735289022650,7.68904615,189.82,189.76,7.68904615]
[1735289022847,7.68904615,189.85,189.75,3.64]
[1735289023055,7.68904615,189.83,189.76,7.68904615]
[1735289023443,7.68904615,189.83,189.75,3.64]
[1735289023748,7.68904615,189.81,189.75,3.64]
[1735289024549,2.6376,189.79,189.75,3.64]
[1735289025252,10.32624615,189.81,189.75,11.32904615]
[1735289025449,7.68904615,189.81,189.75,11.32904615]
[1735289025752,7.68904615,189.81,189.75,3.64]
[1735289026149,12.01162506,189.84,189.75,3.64]
[1735289026651,2.6376,189.79,189.75,3.64]
[1735289028451,2.6373,189.81,189.77,2.6377]
[1735289028645,3.1997,189.86,189.75,3.64]
[1735289029155,2.6373,189.8,189.75,6.278]
[1735289030847,12.01162506,189.84,189.75,3.64]
[1735289031051,3.1997,189.86,189.75,3.64]
[1735289031357,2.6373,189.81,189.76,2.6378]
[1735289031556,3.1997,189.86,189.76,2.6378]
[1735289031757,12.01162506,189.84,189.76,2.6378]
[1735289031954,2.6373,189.81,189.76,2.6378]
[1735289032151,12.01162506,189.84,189.75,3.64]
[1735289032855,12.01162506,189.84,189.75,6.278]
[1735289033157,2.6374,189.8,189.75,3.64]
[1735289034562,12.01162506,189.84,189.75,3.64]
[1735289035060,12.01162506,189.84,189.76,2.6378]
[1735289035257,2.6371,189.82,189.76,2.6378]
[1735289035459,12.01162506,189.84,189.76,2.6378]
[1735289036058,2.6374,189.8,189.76,2.6378]
[1735289036454,12.01162506,189.84,189.77,2.6377]
[1735289036659,2.6372,189.81,189.77,2.6377]
[1735289037058,12.01162506,189.84,189.75,3.64]
[1735289037259,2.6375,189.79,189.75,6.278]
[1735289038051,2.6376,189.78,189.75,3.64]
[1735289038761,2.6375,189.79,189.75,3.64]
[1735289039557,2.6375,189.79,189.75,6.278]
[1735289039749,12.01162506,189.84,189.75,6.278]
[1735289039954,2.637,189.83,189.75,3.64]
[1735289040654,3.1997,189.86,189.75,3.64]
[1735289040862,21.90786352,189.89,189.8,12.01162506]
[1735289041165,21.90786352,189.89,189.81,3.64]
[1735289041762,2.6359,189.91,189.81,3.64]
[1735289041959,2.6359,189.91,189.86,2.6365]
[1735289045254,4.7989,189.93,189.83,12.01162506]
[1735289045563,2.6362,189.88,189.82,2.637]
[1735289046361,2.6362,189.88,189.81,3.64]
[1735289046558,4.7989,189.93,189.81,3.64]
[1735289046859,4.7989,189.93,189.83,12.01162506]
[1735289047053,4.7989,189.93,189.84,2.6366]
[1735289047854,4.7989,189.93,189.83,12.01162506]
[1735289048058,2.636,189.9,189.85,2.6366]
[1735289048259,7.67814654,189.92,189.85,7.67814654]
[1735289049568,2.6358,189.91,189.86,2.6364]
[1735289053558,2.6358,189.91,189.86,6.2764]
[1735289053764,2.636,189.9,189.86,6.2764]
[1735289055467,2.6362,189.88,189.84,6.2768]
[1735289055769,7.67814654,189.9,189.84,6.2768]
[1735289056567,2.6362,189.88,189.84,3.64]
[1735289056767,7.67814654,189.88,189.82,3.64]
[1735289056969,7.67814654,189.86,189.79,7.67814654]
[1735289057268,2.6369,189.84,189.79,6.2774]
[1735289057465,2.6369,189.84,189.77,3.64]
[1735289057466,7.67814654,189.84,189.77,3.64]
[1735289058272,7.67814654,189.84,189.76,13.93594654]
[1735289058767,7.67814654,189.84,189.77,2.6377]
[1735289059473,2.6371,189.82,189.77,2.6377]
[1735289059967,2.6368,189.84,189.79,2.6375]
[1735289060968,2.6371,189.82,189.78,7.67814654]
[1735289061169,7.67814654,189.84,189.76,7.67814654]
[1735289061461,7.67814654,189.82,189.76,7.67814654]
[1735289061867,2.6374,189.8,189.76,7.67814654]
[1735289063263,2.6372,189.81,189.76,10.31604654]
[1735289064172,7.67814654,189.82,189.76,7.67814654]
[1735289064371,7.67814654,189.82,189.75,7.67814654]
[1735289064964,2.6375,189.79,189.75,7.67814654]
[1735289065164,7.67814654,189.84,189.76,2.6379]
[1735289065875,2.6373,189.81,189.76,2.6379]
[1735289066070,7.67814654,189.82,189.75,7.67814654]
[1735289066271,2.6373,189.8,189.75,10.31614654]
[1735289066466,7.67814654,189.82,189.75,7.67814654]
[1735289066669,7.67814654,189.8,189.73,11.29814654]
[1735289066867,2.6376,189.78,189.73,11.29814654]
[1735289067277,7.67814654,189.8,189.73,3.62]
[1735289067671,7.67814654,189.78,189.73,3.62]
[1735289068172,2.6379,189.77,189.73,3.62]
[1735289068474,2.6379,189.77,189.72,4.47875957]
[1735289069473,7.67814654,189.76,189.68,7.67814654]
[1735289069677,7.67814654,189.74,189.68,11.29814654]
[1735289071575,2.6383,189.73,189.68,13.93714654]
[1735289071877,7.67814654,189.74,189.68,11.29814654]
[1735289072075,1.5448,189.79,189.68,11.29814654]
[1735289072076,7.67814654,189.76,189.68,11.29814654]
[1735289073577,2.6382,189.74,189.69,2.6388]
[1735289075579,7.67814654,189.76,189.7,7.67814654]
[1735289075781,10.31614654,189.76,189.7,10.31684654]
[1735289077583,1.5448,189.79,189.74,7.67814654]
[1735289077784,7.67814654,189.82,189.74,11.31814654]
[1735289077974,7.67814654,189.82,189.76,7.67814654]
[1735289078178,3.0866,189.86,189.76,7.67814654]
[1735289078378,7.67814654,189.84,189.78,7.67814654]
[1735289078578,10.76474654,189.86,189.78,7.67814654]
[1735289078780,2.6369,189.84,189.79,2.6375]
[1735289080579,9.23144654,189.86,189.78,7.67814654]
[1735289080778,11.86804654,189.86,189.8,10.31534654]
[1735289080983,10.31474654,189.86,189.8,13.95534654]
[1735289081382,7.67814654,189.88,189.8,11.31814654]
[1735289081581,2.6364,189.87,189.82,10.31504654]
[1735289090789,7.67814654,189.88,189.82,10.31504654]
[1735289090989,2.6365,189.86,189.82,10.31504654]
[1735289092590,2.6364,189.87,189.83,2.6369]
[1735289096890,7.67814654,189.86,189.81,3.62]
[1735289097087,7.67814654,189.84,189.79,3.62]
[1735289098294,7.67814654,189.84,189.78,3.62]
[1735289098893,2.637,189.83,189.78,3.62]
[1735289099091,1.6044,189.89,189.78,11.29814654]
[1735289099294,7.67814654,189.86,189.78,11.29814654]
[1735289100099,2.6368,189.84,189.8,2.6373]
[1735289101001,2.6367,189.85,189.8,2.6373]
[1735289101301,7.67814654,189.86,189.8,2.6373]
[1735289101997,3.2492,189.91,189.84,7.67814654]
[1735289102197,1.6544,189.91,189.84,11.29814654]
[1735289102601,2.6358,189.91,189.86,10.31454654]
[1735289103707,2.6364,189.87,189.84,3.62]
[1735289103903,2.6364,189.87,189.76,1.6159]
[1735289103904,7.67814654,189.86,189.8,3.62]
[1735289104096,7.67814654,189.86,189.79,7.67814654]
[1735289104295,2.637,189.83,189.79,7.67814654]
[1735289104491,7.67814654,189.84,189.78,3.62]
[1735289104896,2.6371,189.82,189.78,3.62]
[1735289105497,2.6375,189.79,189.76,3.62]
[1735289106198,12.01035435,189.84,189.71,3.45631507]
[1735289106403,2.6379,189.76,189.72,3.62]
[1735289106697,12.01035435,189.81,189.72,3.62]
[1735289106902,2.6382,189.74,189.71,1.84041507]
[1735289108296,12.01035435,189.78,189.71,1.84041507]
[1735289108703,4.7624,189.8,189.71,1.84041507]
[1735289109297,2.6378,189.77,189.72,2.6384]
[1735289109895,4.7624,189.8,189.71,13.85076942]
[1735289110099,12.01035435,189.84,189.71,13.85076942]
[1735289110294,3.2092,189.86,189.74,12.01035435]
[1735289110602,2.637,189.83,189.75,3.62]
[1735289111102,2.6368,189.85,189.78,2.6376]
[1735289111493,1.6494,189.86,189.76,12.01035435]
[1735289111699,21.90786352,189.91,189.79,12.01035435]
[1735289111904,1.664,189.92,189.79,12.01035435]
[1735289112505,2.636,189.9,189.82,12.01035435]
[1735289112705,2.636,189.9,189.83,3.62]
[1735289113101,2.6361,189.89,189.83,3.62]
[1735289113898,1.664,189.92,189.83,3.62]
[1735289114100,1.664,189.92,189.85,2.6366]
[1735289115002,3.3122,189.94,189.83,3.62]
[1735289115202,3.3122,189.94,189.83,5.1718]
[1735289115605,15.32255435,189.94,189.83,7.8086]
[1735289116002,15.32255435,189.94,189.83,5.1718]
[1735289116803,3.3122,189.94,189.83,5.1718]
[1735289118506,2.6357,189.92,189.83,5.1718]
[1735289120207,2.6357,189.92,189.87,2.6364]
[1735289120907,2.6355,189.93,189.87,2.6364]
[1735289121300,3.3122,189.94,189.88,2.6362]
[1735289121501,2.6354,189.94,189.85,12.01035435]
[1735289121706,12.01035435,189.97,189.85,12.01035435]
[1735289121906,2.6355,189.93,189.87,2.6363]
[1735289122214,13.56295435,189.97,189.85,12.01035435]
[1735289124312,2.6356,189.93,189.87,2.6363]
[1735289125209,13.56295435,189.97,189.85,12.01035435]
[1735289125410,2.6358,189.91,189.86,2.6365]
[1735289126310,2.6358,189.91,189.83,5.1718]
[1735289126512,2.636,189.9,189.84,2.6366]
[1735289126720,12.01035435,189.94,189.84,2.6366]
[1735289127415,1.6167,189.93,189.82,2.6369]
[1735289127615,12.01035435,189.91,189.82,2.6369]
[1735289128020,12.01035435,189.88,189.75,12.01035435]
[1735289128207,1.6713,189.87,189.77,3.62]
[1735289128512,1.6713,189.87,189.76,3.62]
[1735289128914,2.6374,189.8,189.76,3.62]
[1735289129118,12.01035435,189.82,189.74,2.6381]
[1735289129316,12.01035435,189.82,189.72,3.62]
[1735289129522,2.6375,189.79,189.72,3.62]
[1735289130414,2.6375,189.79,189.73,2.6383]
[1735289131618,12.01035435,189.82,189.71,1.84041507]
[1735289131923,12.01035435,189.79,189.71,1.84041507]
[1735289132117,1.5295,189.78,189.71,1.84041507]
[1735289132816,1.5295,189.78,189.68,3.62]
[1735289133618,2.6382,189.75,189.68,2.6389]
[1735289133820,1.5295,189.78,189.67,3.62]
[1735289135420,2.6383,189.73,189.68,2.639]
[1735289135722,2.6383,189.73,189.66,54.41621511]
[1735289135723,2.6383,189.73,189.67,3.62]
[1735289136324,2.6382,189.74,189.68,2.639]
[1735289136921,1.5295,189.78,189.67,3.62]
[1735289138525,2.6379,189.76,189.7,2.6387]
[1735289139925,2.6383,189.73,189.68,2.6389]
[1735289140729,2.6383,189.73,189.67,3.62]
[1735289140927,12.01035435,189.76,189.63,12.01035435]
[1735289141134,12.01035435,189.73,189.62,3.0527]
[1735289141327,12.01035435,189.73,189.63,3.62]
[1735289142232,12.01035435,189.76,189.64,12.01035435]
[1735289142729,12.01035435,189.76,189.64,2.6395]
[1735289143434,2.6389,189.69,189.64,2.6395]
[1735289143834,2.6389,189.69,189.63,6.2597]
[1735289144132,2.6389,189.69,189.63,2.6397]
[1735289144328,3.2082,189.72,189.62,3.62]
[1735289144524,2.639,189.68,189.62,6.2598]
[1735289145427,2.6393,189.67,189.61,2.64]
[1735289145635,2.6393,189.67,189.61,6.26]
[1735289146235,2.6393,189.67,189.62,2.6398]
[1735289146535,2.639,189.68,189.61,15.63035435]
[1735289146733,3.2082,189.72,189.64,2.6395]
[1735289146934,3.2082,189.72,189.61,15.63035435]
[1735289147136,2.6393,189.66,189.61,3.62]
[1735289148434,2.6394,189.65,189.61,3.62]
[1735289148638,1.5594,189.69,189.61,3.62]
[1735289149335,1.5594,189.69,189.58,6.2603]
[1735289149934,2.6396,189.64,189.58,3.62]
[1735289150237,1.5594,189.69,189.59,2.6402]
[1735289150438,2.6393,189.66,189.59,2.6402]
[1735289150644,1.5594,189.69,189.59,2.6402]
[1735289150937,1.5594,189.69,189.58,2.6404]
[1735289151139,2.6393,189.66,189.58,2.6404]
[1735289151341,1.5594,189.69,189.57,3.62]
[1735289151634,1.5594,189.69,189.6,12.01035435]
[1735289152539,2.6391,189.68,189.63,2.6396]
[1735289153131,1.5594,189.69,189.63,2.6396]
[1735289153435,1.5594,189.69,189.61,3.62]
[1735289154033,2.6391,189.68,189.63,2.6396]
[1735289154739,1.5594,189.69,189.63,2.6396]
[1735289155031,2.6392,189.67,189.63,2.6396]
[1735289155233,1.5594,189.69,189.61,6.2599]
[1735289155438,2.6394,189.66,189.61,3.62]
[1735289156640,1.5594,189.69,189.63,2.6397]
[1735289156831,3.2082,189.72,189.63,12.01035435]
[1735289156832,1.5497,189.72,189.63,12.01035435]
[1735289157039,1.5784,189.75,189.63,12.01035435]
[1735289157444,1.5784,189.75,189.64,1.5827]
[1735289157638,12.01035435,189.77,189.66,12.01035435]
[1735289157943,12.01035435,189.77,189.67,3.62]
[1735289158140,13.58875435,189.77,189.67,3.62]
[1735289158337,2.6384,189.72,189.67,3.62]
[1735289158841,2.6383,189.73,189.68,2.639]
[1735289159539,13.58875435,189.77,189.67,3.62]
[1735289159731,2.6382,189.74,189.69,2.6388]
[1735289160941,2.6382,189.74,189.68,2.639]
[1735289161544,2.6379,189.77,189.69,12.01035435]
[1735289161936,12.01035435,189.8,189.69,12.01035435]
[1735289162344,2.638,189.76,189.69,14.64905435]
[1735289162541,12.01035435,189.83,189.69,12.01035435]
[1735289162739,76.74786352,189.89,189.67,3.62]
[1735289162740,21.90786352,189.92,189.75,12.01035435]
[1735289163047,21.90786352,189.92,189.78,12.01035435]
[1735289163048,13.64845435,189.91,189.78,12.01035435]
[1735289163442,2.6362,189.88,189.82,2.637]
[1735289163746,13.64845435,189.91,189.83,3.62]
[1735289164544,12.01035435,189.88,189.83,3.62]
[1735289164746,12.01035435,189.88,189.79,3.62]
[1735289165644,2.6371,189.82,189.76,4.2804]
[1735289165950,12.01035435,189.88,189.78,3.62]
[1735289168855,2.6371,189.82,189.78,3.62]
[1735289170557,12.01035435,189.88,189.78,3.62]
[1735289170750,2.6368,189.84,189.79,2.6375]
[1735289171650,2.637,189.83,189.78,3.62]
[1735289172050,12.01035435,189.88,189.78,3.62]
[1735289172350,12.01035435,189.88,189.78,6.2576]
[1735289173148,2.6366,189.85,189.79,2.6375]
[1735289173656,13.64845435,189.91,189.78,15.63035435]
[1735289173960,2.6365,189.86,189.8,2.6372]
[1735289174255,13.64845435,189.91,189.8,2.6372]
[1735289174452,2.6368,189.84,189.81,3.62]
[1735289174659,12.01035435,189.88,189.81,3.62]
[1735289174956,1.6381,189.91,189.76,4.2803]
[1735289174957,12.01035435,189.9,189.76,4.2803]
[1735289175155,12.01035435,189.82,189.76,3.62]
[1735289175343,12.01035435,189.82,189.7,1.6499]
[1735289175549,12.01035435,189.82,189.71,3.62]
[1735289175751,2.6379,189.76,189.71,6.2586]
[1735289176260,12.01035435,189.79,189.71,3.62]
[1735289176649,2.6382,189.75,189.71,3.62]
[1735289178261,2.6379,189.77,189.71,6.2586]
[1735289178456,1.5702,189.8,189.71,3.62]
[1735289178862,2.6375,189.79,189.74,2.6382]
[1735289179250,2.6372,189.81,189.76,2.6379]
[1735289179464,12.01035435,189.88,189.77,3.6]
[1735289179758,12.01035435,189.88,189.78,15.61035435]
[1735289179960,12.01035435,189.88,189.79,3.6]
[1735289180663,2.6365,189.86,189.81,2.6372]
[1735289180856,2.6365,189.86,189.79,3.6]
[1735289181161,2.6366,189.85,189.79,6.2373]
[1735289182354,2.6366,189.85,189.8,2.6373]
[1735289182755,12.01035435,189.88,189.8,2.6373]
[1735289183059,2.6365,189.86,189.8,2.6373]
[1735289183255,2.6365,189.86,189.79,3.6]
[1735289183555,52.21635541,189.97,189.79,3.6]
[1735289183761,12.01035435,189.95,189.81,12.01035435]
[1735289184562,2.6359,189.91,189.85,2.6366]
[1735289184864,4.8376,189.96,189.81,12.01035435]
[1735289184865,12.01035435,189.92,189.86,3.6]
[1735289185259,12.01035435,189.89,189.82,3.6]
[1735289185657,2.6361,189.89,189.83,2.6369]
[1735289186057,2.6361,189.89,189.82,3.6]
[1735289186963,2.6362,189.88,189.82,6.2369]
[1735289187265,12.01035435,189.92,189.82,6.2369]
[1735289187765,2.6362,189.89,189.82,3.6]
[1735289189464,2.6362,189.89,189.84,2.6368]
[1735289189865,2.6359,189.91,189.82,3.6]
[1735289190062,4.8376,189.96,189.87,2.6364]
[1735289190263,4.8376,189.96,189.88,3.6]
[1735289191269,12.01035435,189.95,189.88,3.6]
[1735289193362,12.01035435,189.95,189.89,2.6361]
[1735289194071,12.01035435,190.0,189.88,3.6]
[1735289194363,2.6348,189.98,189.93,2.6355]
[1735289194568,12.01035435,190.03,189.94,3.6]
[1735289195465,2.6348,189.99,189.94,6.2354]
[1735289195769,12.01035435,190.03,189.94,6.2354]
[1735289196469,2.6348,189.98,189.94,6.2354]
[1735289196669,12.01035435,190.03,189.94,3.6]
[1735289197065,2.6344,190.02,189.94,3.6]
[1735289197771,4.7034,190.05,189.94,3.6]
[1735289198365,2.6342,190.03,189.98,2.6348]
[1735289201169,7.3374,190.05,189.99,2.6347]
[1735289201370,3.0643,190.05,190.0,3.6]
[1735289202472,12.01035435,190.08,190.0,6.2345]
[1735289203171,2.6338,190.06,190.0,6.2345]
[1735289203669,2.6333,190.09,190.03,2.634]
[1735289203862,3.17,190.11,190.0,3.6]
[1735289204067,3.17,190.11,190.02,12.01035435]
[1735289204366,2.6333,190.1,190.04,2.6339]
[1735289204570,3.17,190.11,190.04,2.6339]
[1735289205068,3.17,190.11,190.05,3.6]
[1735289205263,2.6331,190.11,190.06,2.6337]
[1735289205668,12.01035435,190.15,190.06,2.6337]
[1735289206973,2.6332,190.11,190.06,2.6337]
[1735289208077,2.6329,190.12,190.08,2.6334]
[1735289208272,16.82845435,190.18,190.05,15.61035435]
[1735289208876,2.6325,190.16,190.08,12.01035435]
[1735289209881,15.20965435,190.18,190.08,12.01035435]
[1735289210175,12.01035435,190.15,190.0,1.5928]
[1735289210376,12.01035435,190.15,190.01,15.61035435]
[1735289211578,2.6333,190.1,190.01,15.61035435]
[1735289213377,12.01035435,190.15,190.01,15.61035435]
[1735289213578,12.01035435,190.15,190.04,12.01035435]
[1735289213772,12.01035435,190.15,190.01,5.1621]
[1735289213976,12.01035435,190.15,190.01,17.17245435]
[1735289214179,12.01035435,190.12,190.01,15.61035435]
[1735289214472,12.01035435,190.12,190.0,1.5928]
[1735289214679,12.01035435,190.09,189.96,1.6279]
[1735289214874,4.8596,190.08,189.99,3.6]
[1735289215178,2.6343,190.02,189.95,12.01035435]
[1735289215382,12.01035435,190.06,189.96,3.6]
[1735289215881,2.6341,190.03,189.96,6.2351]
[1735289216175,12.01035435,190.06,189.96,6.2351]
[1735289217279,2.6344,190.01,189.96,6.2351]
[1735289217479,12.01035435,190.06,189.92,13.55095435]
[1735289217669,4.8596,190.08,189.93,3.6]
[1735289217670,12.01035435,190.03,189.93,3.6]
[1735289217872,2.6354,189.94,189.86,12.01035435]
[1735289218075,12.01035435,190.0,189.87,6.2363]
[1735289218279,4.7498,189.99,189.87,2.6363]
[1735289218482,4.7498,189.99,189.88,3.6]
[1735289218979,12.01035435,189.97,189.82,4.7082]
[1735289219172,12.01035435,189.97,189.83,15.61035435]
[1735289220081,2.6355,189.94,189.86,2.6364]
[1735289220281,12.01035435,189.97,189.86,2.6364]
[1735289220476,2.6357,189.92,189.86,2.6364]
[1735289220674,12.01035435,189.97,189.86,2.6364]
[1735289221073,4.7498,189.99,189.83,15.61035435]